[Event "Titled Tuesday Blitz May 10 Late 2022"]
[White "Melikhov, Evgeny V."]
[Black "Petre, Nad-Titus"]
[WhiteFideId "4122046"]
[BlackFideId "1204165"]
[WhiteElo "1931"]
[BlackElo "2354"]
[Result "0-1"]
[Round "02"]
[TimeControl "180+1"]
[Date "2022.05.11"]
[WhiteClock "0:00:14"]
[BlackClock "0:00:08"]

1. d4 {[%clk 0:03:00]}  d5 {[%clk 0:02:58]} 2. c4 {[%clk 0:03:00]}  e6 {[%clk 0:02:58]} 3. Nc3 {[%clk 0:03:00]}  Nf6 {[%clk 0:02:57]} 4. cxd5 {[%clk 0:03:00]}  exd5 {[%clk 0:02:57]} 5. Bg5 {[%clk 0:03:00]}  c6 {[%clk 0:02:57]} 6. Qc2 {[%clk 0:02:59]}  Be7 {[%clk 0:02:53]} 7. e3 {[%clk 0:02:59]}  O-O {[%clk 0:02:50]} 8. Bd3 {[%clk 0:02:59]}  h6 {[%clk 0:02:50]} 9. Bh4 {[%clk 0:02:58]}  a5 {[%clk 0:02:49]} 10. Nf3 {[%clk 0:02:56]}  Re8 {[%clk 0:02:40]} 11. O-O {[%clk 0:02:53]}  Nbd7 {[%clk 0:02:23]} 12. h3 {[%clk 0:02:52]}  Ne4 {[%clk 0:02:15]} 13. Bxe4 {[%clk 0:02:50]}  dxe4 {[%clk 0:02:14]} 14. Qxe4 {[%clk 0:02:33]}  Bxh4 {[%clk 0:01:51]} 15. Qxh4 {[%clk 0:02:32]}  Qxh4 {[%clk 0:01:38]} 16. Nxh4 {[%clk 0:02:31]}  Nf6 {[%clk 0:01:35]} 17. Rad1 {[%clk 0:02:24]}  Be6 {[%clk 0:01:34]} 18. a3 {[%clk 0:02:21]}  Bb3 {[%clk 0:01:28]} 19. Rd2 {[%clk 0:02:20]}  Rad8 {[%clk 0:01:26]} 20. Nf3 {[%clk 0:02:17]}  g6 {[%clk 0:01:25]} 21. Rc1 {[%clk 0:02:16]}  Kg7 {[%clk 0:01:23]} 22. Re2 {[%clk 0:01:36]}  Nd7 {[%clk 0:01:20]} 23. Nd2 {[%clk 0:01:33]}  Be6 {[%clk 0:01:19]} 24. Nce4 {[%clk 0:01:31]}  f5 {[%clk 0:01:11]} 25. Nd6 {[%clk 0:01:27]}  Re7 {[%clk 0:01:07]} 26. Nxb7 {[%clk 0:01:27]}  Rb8 {[%clk 0:01:07]} 27. Nxa5 {[%clk 0:01:25]}  Rxb2 {[%clk 0:01:08]} 28. Nxc6 {[%clk 0:01:24]}  Rf7 {[%clk 0:01:08]} 29. Kf1 {[%clk 0:01:15]}  Bd5 {[%clk 0:01:04]} 30. Ne5 {[%clk 0:01:10]}  Nxe5 {[%clk 0:01:03]} 31. dxe5 {[%clk 0:01:10]}  Ra7 {[%clk 0:01:01]} 32. Nf3 {[%clk 0:01:07]}  Rxe2 {[%clk 0:00:54]} 33. Kxe2 {[%clk 0:01:07]}  Rxa3 {[%clk 0:00:53]} 34. Rc7+ {[%clk 0:01:06]}  Kg8 {[%clk 0:00:52]} 35. Nh4 {[%clk 0:00:52]}  Ra2+ {[%clk 0:00:49]} 36. Kd3 {[%clk 0:00:45]}  Be4+ {[%clk 0:00:45]} 37. Kd4 {[%clk 0:00:44]}  Rd2+ {[%clk 0:00:43]} 38. Kc5 {[%clk 0:00:44]}  Rd5+ {[%clk 0:00:37]} 39. Kc4 {[%clk 0:00:44]}  Rxe5 {[%clk 0:00:32]} 40. Nxg6 {[%clk 0:00:43]}  Ra5 {[%clk 0:00:27]} 41. f3 {[%clk 0:00:41]}  Ra2 {[%clk 0:00:24]} 42. Kd4 {[%clk 0:00:35]}  Bb1 {[%clk 0:00:18]} 43. Ke5 {[%clk 0:00:30]}  Ra5+ {[%clk 0:00:13]} 44. Kf4 {[%clk 0:00:26]}  Ra4+ {[%clk 0:00:14]} 45. Kg3 {[%clk 0:00:24]}  Ra6 {[%clk 0:00:14]} 46. h4 {[%clk 0:00:20]}  Rxg6+ {[%clk 0:00:13]} 47. Kf4 {[%clk 0:00:20]}  Rxg2 {[%clk 0:00:13]} 48. e4 {[%clk 0:00:20]}  fxe4 {[%clk 0:00:11]} 49. fxe4 {[%clk 0:00:20]}  Rg7 {[%clk 0:00:09]} 50. Rc8+ {[%clk 0:00:18]}  Kh7 {[%clk 0:00:08]} 51. h5 {[%clk 0:00:19]}  Re7 {[%clk 0:00:07]} 52. e5 {[%clk 0:00:18]}  Kg7 {[%clk 0:00:07]} 53. Rc6 {[%clk 0:00:17]}  Ba2 {[%clk 0:00:06]} 54. Rf6 {[%clk 0:00:16]}  Bf7 {[%clk 0:00:05]} 55. Kf5 {[%clk 0:00:16]}  Bxh5 {[%clk 0:00:05]} 56. e6 {[%clk 0:00:16]}  Be2 {[%clk 0:00:05]} 57. Rg6+ {[%clk 0:00:15]}  Kh7 {[%clk 0:00:04]} 58. Kf6 {[%clk 0:00:15]}  Bd3 {[%clk 0:00:05]} 59. Kxe7 {[%clk 0:00:14]}  Bxg6 {[%clk 0:00:04]} 60. Kf6 {[%clk 0:00:15]}  h5 {[%clk 0:00:05]} 61. Kg5 {[%clk 0:00:15]}  Kg7 {[%clk 0:00:06]} 62. e7 {[%clk 0:00:15]}  Be8 {[%clk 0:00:06]} 63. Kh4 {[%clk 0:00:15]}  Kf6 {[%clk 0:00:07]} 64. Kg3 {[%clk 0:00:14]}  Kxe7 {[%clk 0:00:08]} 0-1


[Site "https://www.chess.com"]

[Event "Titled Tuesday Blitz May 10 Late 2022"]
[White "Melkumyan, Hrant"]
[Black "Wieczorek, Oskar"]
[WhiteFideId "13302485"]
[BlackFideId "1133950"]
[WhiteElo "2604"]
[BlackElo "2330"]
[Result "1-0"]
[Round "02"]
[TimeControl "180+1"]
[Date "2022.05.10"]
[WhiteClock "0:01:22"]
[BlackClock "0:00:06"]

1. c4 {[%clk 0:03:00]}  Nf6 {[%clk 0:02:59]} 2. g3 {[%clk 0:02:56]}  g6 {[%clk 0:02:57]} 3. Bg2 {[%clk 0:02:57]}  Bg7 {[%clk 0:02:58]} 4. d4 {[%clk 0:02:55]}  c5 {[%clk 0:02:56]} 5. Nf3 {[%clk 0:02:55]}  cxd4 {[%clk 0:02:53]} 6. Nxd4 {[%clk 0:02:55]}  Nc6 {[%clk 0:02:54]} 7. Nc3 {[%clk 0:02:54]}  O-O {[%clk 0:02:48]} 8. O-O {[%clk 0:02:54]}  Qa5 {[%clk 0:02:49]} 9. Nb3 {[%clk 0:02:52]}  Qd8 {[%clk 0:02:48]} 10. c5 {[%clk 0:02:52]}  b6 {[%clk 0:02:47]} 11. Bf4 {[%clk 0:02:40]}  Bb7 {[%clk 0:02:36]} 12. Qd2 {[%clk 0:02:38]}  Rc8 {[%clk 0:02:24]} 13. Rfd1 {[%clk 0:02:38]}  Ba8 {[%clk 0:02:24]} 14. Bh6 {[%clk 0:02:33]}  bxc5 {[%clk 0:02:23]} 15. Bxg7 {[%clk 0:02:33]}  Kxg7 {[%clk 0:02:24]} 16. Nxc5 {[%clk 0:02:31]}  d6 {[%clk 0:02:24]} 17. N5e4 {[%clk 0:02:28]}  Nxe4 {[%clk 0:02:19]} 18. Nxe4 {[%clk 0:02:28]}  Qa5 {[%clk 0:02:19]} 19. Nc3 {[%clk 0:02:19]}  Rb8 {[%clk 0:02:09]} 20. Rac1 {[%clk 0:02:16]}  Rfc8 {[%clk 0:02:09]} 21. b3 {[%clk 0:02:15]}  Ne5 {[%clk 0:01:49]} 22. Bxa8 {[%clk 0:02:11]}  Rxa8 {[%clk 0:01:50]} 23. Qb2 {[%clk 0:02:10]}  f6 {[%clk 0:01:29]} 24. Ne4 {[%clk 0:02:05]}  Qa6 {[%clk 0:01:13]} 25. Kg2 {[%clk 0:01:58]}  Rxc1 {[%clk 0:00:59]} 26. Rxc1 {[%clk 0:01:59]}  Rc8 {[%clk 0:00:59]} 27. Rxc8 {[%clk 0:01:57]}  Qxc8 {[%clk 0:01:00]} 28. f3 {[%clk 0:01:58]}  d5 {[%clk 0:00:57]} 29. Nf2 {[%clk 0:01:54]}  Qc5 {[%clk 0:00:55]} 30. Qd2 {[%clk 0:01:54]}  Nc6 {[%clk 0:00:39]} 31. Nd3 {[%clk 0:01:52]}  Qd4 {[%clk 0:00:38]} 32. e3 {[%clk 0:01:40]}  Qb6 {[%clk 0:00:21]} 33. Nf4 {[%clk 0:01:41]}  Nb4 {[%clk 0:00:21]} 34. a3 {[%clk 0:01:41]}  e5 {[%clk 0:00:22]} 35. Nh3 {[%clk 0:01:26]}  Na6 {[%clk 0:00:14]} 36. Qxd5 {[%clk 0:01:26]}  Nc7 {[%clk 0:00:07]} 37. Qd7+ {[%clk 0:01:25]}  Kh6 {[%clk 0:00:07]} 38. Nf2 {[%clk 0:01:26]}  Ne6 {[%clk 0:00:06]} 39. Ng4+ {[%clk 0:01:24]}  Kg5 {[%clk 0:00:06]} 40. h4+ {[%clk 0:01:22]} 1-0


[Site "https://www.chess.com"]

[Event "Titled Tuesday Blitz May 10 Late 2022"]
[White "Mikhailov, Viacheslav"]
[Black "Remolar Gallen, Jose"]
[WhiteFideId "4187369"]
[BlackFideId "2215187"]
[WhiteElo "2381"]
[BlackElo "2205"]
[Result "0-1"]
[Round "02"]
[TimeControl "180+1"]
[Date "2022.05.11"]
[WhiteClock "0:02:22"]
[BlackClock "0:01:17"]

1. Nf3 {[%clk 0:02:59]}  Nf6 {[%clk 0:02:58]} 2. g3 {[%clk 0:03:00]}  g6 {[%clk 0:02:58]} 3. Bg2 {[%clk 0:03:00]}  Bg7 {[%clk 0:02:57]} 4. O-O {[%clk 0:03:01]}  O-O {[%clk 0:02:58]} 5. c4 {[%clk 0:03:02]}  d6 {[%clk 0:02:57]} 6. Nc3 {[%clk 0:03:02]}  Nc6 {[%clk 0:02:57]} 7. d3 {[%clk 0:03:02]}  h6 {[%clk 0:02:56]} 8. Rb1 {[%clk 0:03:02]}  e5 {[%clk 0:02:55]} 9. b4 {[%clk 0:03:00]}  Be6 {[%clk 0:02:52]} 10. b5 {[%clk 0:03:01]}  Ne7 {[%clk 0:02:50]} 11. Nd2 {[%clk 0:03:01]}  Rb8 {[%clk 0:02:46]} 12. a4 {[%clk 0:02:59]}  Nd7 {[%clk 0:02:43]} 13. Ba3 {[%clk 0:02:59]}  e4 {[%clk 0:02:39]} 14. Ncxe4 {[%clk 0:02:41]}  f5 {[%clk 0:02:37]} 15. Nxd6 {[%clk 0:02:41]}  cxd6 {[%clk 0:02:36]} 16. Bxd6 {[%clk 0:02:42]}  Ne5 {[%clk 0:02:17]} 17. Bxb8 {[%clk 0:02:39]}  Qxb8 {[%clk 0:02:18]} 18. Nf3 {[%clk 0:02:37]}  f4 {[%clk 0:02:10]} 19. b6 {[%clk 0:02:31]}  fxg3 {[%clk 0:02:01]} 20. hxg3 {[%clk 0:02:32]}  Nxf3+ {[%clk 0:01:57]} 21. Bxf3 {[%clk 0:02:33]}  Bd4 {[%clk 0:01:45]} 22. bxa7 {[%clk 0:02:32]}  Qxg3+ {[%clk 0:01:43]} 23. Kh1 {[%clk 0:02:28]}  Qh3+ {[%clk 0:01:39]} 24. Kg1 {[%clk 0:02:28]}  Be5 {[%clk 0:01:23]} 25. Re1 {[%clk 0:02:21]}  Bh2+ {[%clk 0:01:17]} 26. Kh1 {[%clk 0:02:20]}  Bg3+ {[%clk 0:01:16]} 27. Kg1 {[%clk 0:02:21]}  Qh2+ {[%clk 0:01:17]} 28. Kf1 {[%clk 0:02:22]}  Qxf2# {[%clk 0:01:17]} 0-1


[Site "https://www.chess.com"]

[Event "Titled Tuesday Blitz May 10 Late 2022"]
[White "Milosevic, Milos"]
[Black "Marin Masis, Jose Esteban"]
[WhiteFideId "964875"]
[BlackFideId "6508146"]
[WhiteElo "2194"]
[BlackElo "1710"]
[Result "0-1"]
[Round "02"]
[TimeControl "180+1"]
[Date "2022.05.11"]
[WhiteClock "0:01:26"]
[BlackClock "0:00:13"]

1. e4 {[%clk 0:03:00]}  c5 {[%clk 0:02:40]} 2. Nf3 {[%clk 0:03:00]}  Nc6 {[%clk 0:02:40]} 3. Bb5 {[%clk 0:02:56]}  d6 {[%clk 0:02:13]} 4. Bxc6+ {[%clk 0:02:55]}  bxc6 {[%clk 0:01:56]} 5. e5 {[%clk 0:02:56]}  dxe5 {[%clk 0:01:34]} 6. Nxe5 {[%clk 0:02:55]}  Qd5 {[%clk 0:01:28]} 7. Nf3 {[%clk 0:02:40]}  Qe4+ {[%clk 0:01:27]} 8. Qe2 {[%clk 0:02:40]}  Qxe2+ {[%clk 0:01:18]} 9. Kxe2 {[%clk 0:02:40]}  Ba6+ {[%clk 0:01:16]} 10. d3 {[%clk 0:02:40]}  c4 {[%clk 0:01:14]} 11. Ne5 {[%clk 0:02:37]}  cxd3+ {[%clk 0:00:59]} 12. cxd3 {[%clk 0:02:36]}  f6 {[%clk 0:00:55]} 13. Nxc6 {[%clk 0:02:32]}  Bb7 {[%clk 0:00:43]} 14. Nd4 {[%clk 0:02:16]}  Bxg2 {[%clk 0:00:40]} 15. Rg1 {[%clk 0:02:16]}  Bb7 {[%clk 0:00:37]} 16. Nc3 {[%clk 0:02:16]}  e5 {[%clk 0:00:30]} 17. Ne6 {[%clk 0:02:14]}  Kf7 {[%clk 0:00:25]} 18. Nxf8 {[%clk 0:02:09]}  Rxf8 {[%clk 0:00:21]} 19. Be3 {[%clk 0:02:09]}  a6 {[%clk 0:00:17]} 20. Ne4 {[%clk 0:02:05]}  Rd8 {[%clk 0:00:15]} 21. Rac1 {[%clk 0:02:03]}  Ne7 {[%clk 0:00:15]} 22. Rc7 {[%clk 0:02:02]}  Bxe4 {[%clk 0:00:15]} 23. dxe4 {[%clk 0:02:03]}  Rc8 {[%clk 0:00:15]} 24. Rgc1 {[%clk 0:02:02]}  Rxc7 {[%clk 0:00:15]} 25. Rxc7 {[%clk 0:02:03]}  Rc8 {[%clk 0:00:16]} 26. Rxc8 {[%clk 0:02:01]}  Nxc8 {[%clk 0:00:17]} 27. Kd3 {[%clk 0:02:02]}  Ke6 {[%clk 0:00:16]} 28. Bc5 {[%clk 0:02:01]}  Kd7 {[%clk 0:00:15]} 29. Bf8 {[%clk 0:01:56]}  g6 {[%clk 0:00:15]} 30. b3 {[%clk 0:01:53]}  Ke6 {[%clk 0:00:14]} 31. Bc5 {[%clk 0:01:50]}  f5 {[%clk 0:00:13]} 32. f3 {[%clk 0:01:49]}  fxe4+ {[%clk 0:00:14]} 33. Kxe4 {[%clk 0:01:50]}  Nd6+ {[%clk 0:00:13]} 34. Bxd6 {[%clk 0:01:47]}  Kxd6 {[%clk 0:00:14]} 35. h4 {[%clk 0:01:47]}  h6 {[%clk 0:00:11]} 36. f4 {[%clk 0:01:47]}  exf4 {[%clk 0:00:11]} 37. Kxf4 {[%clk 0:01:48]}  Ke6 {[%clk 0:00:08]} 38. a4 {[%clk 0:01:46]}  a5 {[%clk 0:00:07]} 39. Ke4 {[%clk 0:01:39]}  Kd6 {[%clk 0:00:07]} 40. Kd4 {[%clk 0:01:33]}  g5 {[%clk 0:00:08]} 41. hxg5 {[%clk 0:01:33]}  hxg5 {[%clk 0:00:09]} 42. Ke4 {[%clk 0:01:25]}  Kc5 {[%clk 0:00:09]} 43. Kf5 {[%clk 0:01:26]}  Kb4 {[%clk 0:00:09]} 44. Ke4 {[%clk 0:01:27]}  Kxb3 {[%clk 0:00:10]} 45. Kf5 {[%clk 0:01:24]}  Kxa4 {[%clk 0:00:10]} 46. Kxg5 {[%clk 0:01:25]}  Kb3 {[%clk 0:00:11]} 47. Kf4 {[%clk 0:01:25]}  a4 {[%clk 0:00:12]} 48. Ke3 {[%clk 0:01:26]}  a3 {[%clk 0:00:13]} 0-1


[Site "https://www.chess.com"]

[Event "Titled Tuesday Blitz May 10 Late 2022"]
[White "Miszler, Levente"]
[Black "Pinheiro, Iung Alicio de O."]
[WhiteFideId "763276"]
[BlackFideId "2104350"]
[WhiteElo "1966"]
[BlackElo "2283"]
[Result "0-1"]
[Round "02"]
[TimeControl "180+1"]
[Date "2022.05.11"]
[WhiteClock "0:00:40"]
[BlackClock "0:00:38"]

1. Nf3 {[%clk 0:03:00]}  c5 {[%clk 0:02:59]} 2. c4 {[%clk 0:03:00]}  g6 {[%clk 0:02:59]} 3. g3 {[%clk 0:02:58]}  Bg7 {[%clk 0:02:59]} 4. Bg2 {[%clk 0:02:59]}  Nc6 {[%clk 0:02:59]} 5. Nc3 {[%clk 0:02:58]}  d6 {[%clk 0:02:59]} 6. O-O {[%clk 0:02:56]}  Be6 {[%clk 0:02:58]} 7. d3 {[%clk 0:02:53]}  Qc8 {[%clk 0:02:58]} 8. Rb1 {[%clk 0:02:51]}  Bh3 {[%clk 0:02:57]} 9. a3 {[%clk 0:02:50]}  Bxc3 {[%clk 0:02:51]} 10. bxc3 {[%clk 0:02:49]}  h5 {[%clk 0:02:52]} 11. e4 {[%clk 0:02:45]}  h4 {[%clk 0:02:50]} 12. Nxh4 {[%clk 0:02:42]}  Rb8 {[%clk 0:02:36]} 13. f4 {[%clk 0:02:37]}  Nf6 {[%clk 0:02:22]} 14. Qe2 {[%clk 0:02:34]}  Nh5 {[%clk 0:02:02]} 15. f5 {[%clk 0:02:20]}  Bxg2 {[%clk 0:02:01]} 16. Kxg2 {[%clk 0:02:11]}  Ne5 {[%clk 0:01:56]} 17. fxg6 {[%clk 0:01:46]}  fxg6 {[%clk 0:01:53]} 18. Bg5 {[%clk 0:01:43]}  a6 {[%clk 0:01:41]} 19. Nf3 {[%clk 0:01:17]}  Qh3+ {[%clk 0:01:20]} 20. Kg1 {[%clk 0:01:09]}  Nxg3 {[%clk 0:00:43]} 21. hxg3 {[%clk 0:00:40]}  Nxf3+ {[%clk 0:00:38]} 0-1


[Site "https://www.chess.com"]

[Event "Titled Tuesday Blitz May 10 Late 2022"]
[White "Moussard, Jules"]
[Black "Sernecki, Franciszek"]
[WhiteFideId "642908"]
[BlackFideId "1169297"]
[WhiteElo "2589"]
[BlackElo "2189"]
[Result "1-0"]
[Round "02"]
[TimeControl "180+1"]
[Date "2022.05.10"]
[WhiteClock "0:00:43"]
[BlackClock "0:00:03"]

1. f4 {[%clk 0:03:00]}  d5 {[%clk 0:02:51]} 2. e3 {[%clk 0:03:00]}  Nf6 {[%clk 0:02:46]} 3. Nf3 {[%clk 0:03:00]}  Bg4 {[%clk 0:02:45]} 4. d4 {[%clk 0:02:59]}  e6 {[%clk 0:02:44]} 5. Bd3 {[%clk 0:03:00]}  c5 {[%clk 0:02:36]} 6. O-O {[%clk 0:03:00]}  Nc6 {[%clk 0:02:34]} 7. c3 {[%clk 0:03:00]}  Bd6 {[%clk 0:02:29]} 8. Nbd2 {[%clk 0:02:58]}  O-O {[%clk 0:02:16]} 9. b3 {[%clk 0:02:53]}  Rc8 {[%clk 0:02:08]} 10. Bb2 {[%clk 0:02:53]}  Bh5 {[%clk 0:01:59]} 11. g3 {[%clk 0:02:48]}  a6 {[%clk 0:01:51]} 12. Qe2 {[%clk 0:02:47]}  b5 {[%clk 0:01:43]} 13. Rac1 {[%clk 0:02:29]}  c4 {[%clk 0:01:33]} 14. Bb1 {[%clk 0:02:29]}  Bg6 {[%clk 0:01:14]} 15. Bxg6 {[%clk 0:02:27]}  hxg6 {[%clk 0:01:08]} 16. Ng5 {[%clk 0:02:26]}  Qa5 {[%clk 0:01:03]} 17. Ra1 {[%clk 0:02:15]}  Qb6 {[%clk 0:01:03]} 18. Rfc1 {[%clk 0:01:59]}  Rc7 {[%clk 0:00:57]} 19. Kg2 {[%clk 0:01:56]}  Rfc8 {[%clk 0:00:56]} 20. e4 {[%clk 0:01:56]}  dxe4 {[%clk 0:00:53]} 21. Ngxe4 {[%clk 0:01:57]}  Nxe4 {[%clk 0:00:52]} 22. Nxe4 {[%clk 0:01:58]}  Be7 {[%clk 0:00:48]} 23. Rab1 {[%clk 0:01:55]}  Na5 {[%clk 0:00:47]} 24. b4 {[%clk 0:01:54]}  Nb7 {[%clk 0:00:47]} 25. Re1 {[%clk 0:01:50]}  Qc6 {[%clk 0:00:40]} 26. Qf3 {[%clk 0:01:48]}  Nd6 {[%clk 0:00:39]} 27. Nc5 {[%clk 0:01:47]}  Qxf3+ {[%clk 0:00:38]} 28. Kxf3 {[%clk 0:01:47]}  a5 {[%clk 0:00:38]} 29. Ba3 {[%clk 0:01:28]}  Ra8 {[%clk 0:00:27]} 30. Re2 {[%clk 0:01:25]}  Nb7 {[%clk 0:00:20]} 31. Ne4 {[%clk 0:01:12]}  Kf8 {[%clk 0:00:15]} 32. h4 {[%clk 0:00:58]}  Nd8 {[%clk 0:00:15]} 33. Nc5 {[%clk 0:00:55]}  Bxc5 {[%clk 0:00:14]} 34. bxc5 {[%clk 0:00:55]}  b4 {[%clk 0:00:05]} 35. cxb4 {[%clk 0:00:55]}  axb4 {[%clk 0:00:05]} 36. Bxb4 {[%clk 0:00:55]}  Nc6 {[%clk 0:00:06]} 37. Ke3 {[%clk 0:00:51]}  Ra4 {[%clk 0:00:06]} 38. a3 {[%clk 0:00:51]}  Ne7 {[%clk 0:00:05]} 39. Rc2 {[%clk 0:00:50]}  Nd5+ {[%clk 0:00:05]} 40. Kd2 {[%clk 0:00:51]}  c3+ {[%clk 0:00:05]} 41. Rxc3 {[%clk 0:00:50]}  Nxc3 {[%clk 0:00:04]} 42. Kxc3 {[%clk 0:00:51]}  Ra6 {[%clk 0:00:04]} 43. Kc4 {[%clk 0:00:50]}  Rcc6 {[%clk 0:00:04]} 44. Re1 {[%clk 0:00:43]}  Ke7 {[%clk 0:00:05]} 45. d5 {[%clk 0:00:44]}  Rc8 {[%clk 0:00:04]} 46. Kb5 {[%clk 0:00:43]}  Kf6 {[%clk 0:00:03]} 47. Kxa6 {[%clk 0:00:43]} 1-0


[Site "https://www.chess.com"]

[Event "Titled Tuesday Blitz May 10 Late 2022"]
[White "Muradov, Soltan"]
[Black "Jegorovas, Aleksandras"]
[WhiteFideId "14002108"]
[BlackFideId "12801950"]
[WhiteElo "1854"]
[BlackElo "2247"]
[Result "0-1"]
[Round "02"]
[TimeControl "180+1"]
[Date "2022.05.11"]
[WhiteClock "0:00:02"]
[BlackClock "0:00:15"]

1. e4 {[%clk 0:03:00]}  e6 {[%clk 0:02:51]} 2. d3 {[%clk 0:02:57]}  d5 {[%clk 0:02:51]} 3. Nd2 {[%clk 0:02:58]}  Nf6 {[%clk 0:02:50]} 4. g3 {[%clk 0:02:59]}  Nc6 {[%clk 0:02:48]} 5. Bg2 {[%clk 0:02:58]}  dxe4 {[%clk 0:02:44]} 6. Nxe4 {[%clk 0:02:57]}  Nxe4 {[%clk 0:02:38]} 7. Bxe4 {[%clk 0:02:57]}  Bc5 {[%clk 0:02:37]} 8. Be3 {[%clk 0:02:50]}  Bxe3 {[%clk 0:02:36]} 9. fxe3 {[%clk 0:02:50]}  Qe7 {[%clk 0:02:27]} 10. Ne2 {[%clk 0:02:42]}  Qb4+ {[%clk 0:02:26]} 11. Qd2 {[%clk 0:02:38]}  Qxb2 {[%clk 0:02:25]} 12. O-O {[%clk 0:02:37]}  Qa3 {[%clk 0:02:22]} 13. Rf2 {[%clk 0:01:19]}  e5 {[%clk 0:02:10]} 14. Kg2 {[%clk 0:00:49]}  Ne7 {[%clk 0:01:59]} 15. Rb1 {[%clk 0:00:23]}  f5 {[%clk 0:01:50]} 16. Bf3 {[%clk 0:00:12]}  c6 {[%clk 0:01:35]} 17. Kg1 {[%clk 0:00:10]}  O-O {[%clk 0:01:34]} 18. Nc3 {[%clk 0:00:10]}  Qd6 {[%clk 0:01:30]} 19. Bg2 {[%clk 0:00:10]}  b6 {[%clk 0:01:27]} 20. Rbf1 {[%clk 0:00:10]}  Be6 {[%clk 0:01:26]} 21. e4 {[%clk 0:00:07]}  fxe4 {[%clk 0:01:18]} 22. Nxe4 {[%clk 0:00:08]}  Qd4 {[%clk 0:01:11]} 23. Ng5 {[%clk 0:00:07]}  Rxf2 {[%clk 0:01:06]} 24. Rxf2 {[%clk 0:00:06]}  Bd5 {[%clk 0:00:58]} 25. c3 {[%clk 0:00:06]}  Qg4 {[%clk 0:00:52]} 26. Bh3 {[%clk 0:00:03]}  Qh5 {[%clk 0:00:40]} 27. c4 {[%clk 0:00:04]}  h6 {[%clk 0:00:40]} 28. cxd5 {[%clk 0:00:03]}  hxg5 {[%clk 0:00:41]} 29. d6 {[%clk 0:00:03]}  Qxh3 {[%clk 0:00:38]} 30. dxe7 {[%clk 0:00:03]}  Qe6 {[%clk 0:00:31]} 31. Qxg5 {[%clk 0:00:03]}  Re8 {[%clk 0:00:28]} 32. Re2 {[%clk 0:00:03]}  Rxe7 {[%clk 0:00:27]} 33. Kg2 {[%clk 0:00:01]}  Qd5+ {[%clk 0:00:24]} 34. Kg1 {[%clk 0:00:02]}  Qd4+ {[%clk 0:00:20]} 35. Re3 {[%clk 0:00:02]}  Qd6 {[%clk 0:00:17]} 36. Kg2 {[%clk 0:00:02]}  a5 {[%clk 0:00:17]} 37. Re4 {[%clk 0:00:02]}  Qxd3 {[%clk 0:00:15]} 0-1


[Site "https://www.chess.com"]

[Event "Titled Tuesday Blitz May 10 Late 2022"]
[White "Naguleswaran, Annorjan"]
[Black "Lazov, Toni"]
[WhiteFideId "2093197"]
[BlackFideId "15000770"]
[WhiteElo "1855"]
[BlackElo "2321"]
[Result "0-1"]
[Round "02"]
[TimeControl "180+1"]
[Date "2022.05.11"]
[WhiteClock "0:00:10"]
[BlackClock "0:00:41"]

1. e4 {[%clk 0:03:00]}  d6 {[%clk 0:02:59]} 2. d4 {[%clk 0:02:58]}  Nf6 {[%clk 0:02:59]} 3. Nc3 {[%clk 0:02:57]}  Nbd7 {[%clk 0:03:00]} 4. f4 {[%clk 0:02:56]}  e5 {[%clk 0:03:01]} 5. Nf3 {[%clk 0:02:56]}  exd4 {[%clk 0:03:01]} 6. Nxd4 {[%clk 0:02:55]}  Nc5 {[%clk 0:03:01]} 7. Qf3 {[%clk 0:02:35]}  Bg4 {[%clk 0:03:01]} 8. Qe3 {[%clk 0:02:33]}  Be7 {[%clk 0:02:42]} 9. h3 {[%clk 0:02:32]}  Bd7 {[%clk 0:02:42]} 10. b4 {[%clk 0:02:25]}  Na6 {[%clk 0:02:27]} 11. a3 {[%clk 0:01:56]}  O-O {[%clk 0:02:25]} 12. Bb2 {[%clk 0:01:54]}  Re8 {[%clk 0:02:12]} 13. O-O-O {[%clk 0:01:48]}  Bf8 {[%clk 0:02:03]} 14. Bd3 {[%clk 0:01:33]}  c5 {[%clk 0:02:04]} 15. bxc5 {[%clk 0:01:23]}  Nxc5 {[%clk 0:02:04]} 16. g4 {[%clk 0:01:07]}  Rc8 {[%clk 0:01:54]} 17. Qf3 {[%clk 0:00:55]}  Na4 {[%clk 0:01:26]} 18. Nxa4 {[%clk 0:00:48]}  Bxa4 {[%clk 0:01:27]} 19. e5 {[%clk 0:00:29]}  dxe5 {[%clk 0:01:02]} 20. fxe5 {[%clk 0:00:30]}  Rxe5 {[%clk 0:01:01]} 21. Nf5 {[%clk 0:00:30]}  Qc7 {[%clk 0:00:51]} 22. g5 {[%clk 0:00:28]}  Bxc2 {[%clk 0:00:47]} 23. Bxe5 {[%clk 0:00:23]}  Bxa3+ {[%clk 0:00:44]} 24. Kd2 {[%clk 0:00:19]}  Qa5+ {[%clk 0:00:44]} 25. Ke2 {[%clk 0:00:15]}  Qxe5+ {[%clk 0:00:45]} 26. Ne3 {[%clk 0:00:13]}  Bxd1+ {[%clk 0:00:44]} 27. Rxd1 {[%clk 0:00:13]}  Qxg5 {[%clk 0:00:44]} 28. Ng4 {[%clk 0:00:11]}  Nxg4 {[%clk 0:00:43]} 29. Qxg4 {[%clk 0:00:10]}  Qxg4+ {[%clk 0:00:43]} 30. hxg4 {[%clk 0:00:10]}  g6 {[%clk 0:00:41]} 0-1


[Site "https://www.chess.com"]

[Event "Titled Tuesday Blitz May 10 Late 2022"]
[White "Paravyan, David"]
[Black "Koellner, Ruben Gideon"]
[WhiteFideId "4194985"]
[BlackFideId "12993093"]
[WhiteElo "2569"]
[BlackElo "2618"]
[Result "1-0"]
[Round "02"]
[TimeControl "180+1"]
[Date "2022.05.10"]
[WhiteClock "0:00:11"]
[BlackClock "0:00:02"]

1. e4 {[%clk 0:02:52]}  d6 {[%clk 0:02:59]} 2. d4 {[%clk 0:02:52]}  Nf6 {[%clk 0:02:59]} 3. Nc3 {[%clk 0:02:53]}  e5 {[%clk 0:02:58]} 4. Nf3 {[%clk 0:02:53]}  Nbd7 {[%clk 0:02:58]} 5. Bc4 {[%clk 0:02:52]}  Be7 {[%clk 0:02:58]} 6. O-O {[%clk 0:02:52]}  c6 {[%clk 0:02:58]} 7. a4 {[%clk 0:02:52]}  Qc7 {[%clk 0:02:58]} 8. Re1 {[%clk 0:02:51]}  h6 {[%clk 0:02:57]} 9. a5 {[%clk 0:02:45]}  Nf8 {[%clk 0:02:48]} 10. Nh4 {[%clk 0:02:32]}  g6 {[%clk 0:02:44]} 11. Nf3 {[%clk 0:02:23]}  g5 {[%clk 0:02:44]} 12. Be3 {[%clk 0:02:20]}  Ng6 {[%clk 0:02:43]} 13. d5 {[%clk 0:01:52]}  Ng4 {[%clk 0:02:13]} 14. Bd2 {[%clk 0:01:49]}  Kf8 {[%clk 0:02:08]} 15. Be2 {[%clk 0:01:47]}  Nf6 {[%clk 0:01:59]} 16. Be3 {[%clk 0:01:42]}  Ng4 {[%clk 0:01:51]} 17. Bc1 {[%clk 0:01:42]}  Nf6 {[%clk 0:01:50]} 18. a6 {[%clk 0:01:39]}  bxa6 {[%clk 0:01:21]} 19. Bxa6 {[%clk 0:01:37]}  Kg7 {[%clk 0:01:08]} 20. Bxc8 {[%clk 0:01:30]}  Rhxc8 {[%clk 0:00:59]} 21. dxc6 {[%clk 0:01:30]}  Qxc6 {[%clk 0:00:59]} 22. Nd2 {[%clk 0:01:31]}  d5 {[%clk 0:00:55]} 23. exd5 {[%clk 0:01:28]}  Nxd5 {[%clk 0:00:56]} 24. Nde4 {[%clk 0:00:41]}  Nxc3 {[%clk 0:00:52]} 25. bxc3 {[%clk 0:00:37]}  Rd8 {[%clk 0:00:42]} 26. Qg4 {[%clk 0:00:32]}  a5 {[%clk 0:00:28]} 27. Ng3 {[%clk 0:00:31]}  Qxc3 {[%clk 0:00:20]} 28. Be3 {[%clk 0:00:27]}  Qxc2 {[%clk 0:00:15]} 29. Nf5+ {[%clk 0:00:21]}  Kh7 {[%clk 0:00:14]} 30. Rac1 {[%clk 0:00:20]}  Qd3 {[%clk 0:00:13]} 31. h4 {[%clk 0:00:13]}  Nxh4 {[%clk 0:00:11]} 32. Nxe7 {[%clk 0:00:13]}  Ng6 {[%clk 0:00:10]} 33. Nf5 {[%clk 0:00:12]}  e4 {[%clk 0:00:09]} 34. Qh5 {[%clk 0:00:11]}  Kg8 {[%clk 0:00:02]} 35. Qxh6 {[%clk 0:00:11]} 1-0


[Site "https://www.chess.com"]